[Event "Titled Tuesday Blitz August 22 Late 2023"]
[White "Ozkan, Taha"]
[Black "Kamsky, Gata"]
[WhiteFideId "34577173"]
[BlackFideId "2000024"]
[WhiteElo "2632"]
[BlackElo "2913"]
[Result "1-0"]
[Round "10"]
[TimeControl "180+1"]
[Date "2023.08.22"]
[WhiteClock "0:00:14"]
[BlackClock "0:00:37"]
[Board "16"]

1. d4 {[%clk 0:03:00]}  f5 {[%clk 0:02:55]} 2. e4 {[%clk 0:03:00]}  fxe4 {[%clk 0:02:54]} 3. Nc3 {[%clk 0:03:01]}  Nf6 {[%clk 0:02:54]} 4. Bg5 {[%clk 0:03:01]}  c6 {[%clk 0:02:54]} 5. f3 {[%clk 0:03:02]}  d5 {[%clk 0:02:53]} 6. fxe4 {[%clk 0:03:02]}  Nxe4 {[%clk 0:02:51]} 7. Nxe4 {[%clk 0:03:02]}  dxe4 {[%clk 0:02:51]} 8. Bc4 {[%clk 0:03:02]}  Qd6 {[%clk 0:02:10]} 9. Ne2 {[%clk 0:03:00]}  Qb4+ {[%clk 0:02:09]} 10. Qd2 {[%clk 0:02:47]}  Qxc4 {[%clk 0:02:10]} 11. O-O {[%clk 0:02:47]}  Nd7 {[%clk 0:02:04]} 12. b3 {[%clk 0:02:43]}  Qd5 {[%clk 0:02:03]} 13. c4 {[%clk 0:02:42]}  Qd6 {[%clk 0:02:03]} 14. Nc3 {[%clk 0:02:39]}  Nf6 {[%clk 0:02:02]} 15. Bxf6 {[%clk 0:02:39]}  exf6 {[%clk 0:01:58]} 16. Nxe4 {[%clk 0:02:24]}  Qd8 {[%clk 0:01:51]} 17. Rae1 {[%clk 0:02:12]}  Be7 {[%clk 0:01:49]} 18. d5 {[%clk 0:01:56]}  cxd5 {[%clk 0:01:48]} 19. cxd5 {[%clk 0:01:57]}  Qb6+ {[%clk 0:01:19]} 20. Kh1 {[%clk 0:01:52]}  Bb4 {[%clk 0:01:18]} 21. Nxf6+ {[%clk 0:01:02]}  Kd8 {[%clk 0:01:16]} 22. Qg5 {[%clk 0:00:52]}  Bxe1 {[%clk 0:00:57]} 23. Ne8+ {[%clk 0:00:15]}  Kxe8 {[%clk 0:00:41]} 24. Rxe1+ {[%clk 0:00:15]}  Kd7 {[%clk 0:00:37]} 25. Qe7# {[%clk 0:00:14]} 1-0


[Site "https://www.chess.com"]

[Event "Titled Tuesday Blitz August 22 Late 2023"]
[White "Elsa167"]
[Black "Saif, Malek"]
[BlackFideId "8104220"]
[WhiteElo "2893"]
[BlackElo "2677"]
[Result "1-0"]
[Round "10"]
[TimeControl "180+1"]
[Date "2023.08.22"]
[WhiteClock "0:01:27"]
[BlackClock "0:00:30"]
[Board "18"]

1. e4 {[%clk 0:02:58]}  e5 {[%clk 0:03:00]} 2. f4 {[%clk 0:02:58]}  d5 {[%clk 0:02:59]} 3. exd5 {[%clk 0:02:58]}  e4 {[%clk 0:02:59]} 4. d3 {[%clk 0:02:56]}  exd3 {[%clk 0:02:54]} 5. Qxd3 {[%clk 0:02:42]}  Nf6 {[%clk 0:02:54]} 6. Nc3 {[%clk 0:02:37]}  Be7 {[%clk 0:02:45]} 7. Nf3 {[%clk 0:02:35]}  Nbd7 {[%clk 0:02:42]} 8. Be3 {[%clk 0:02:33]}  Nb6 {[%clk 0:02:40]} 9. O-O-O {[%clk 0:02:33]}  Bg4 {[%clk 0:02:37]} 10. Be2 {[%clk 0:02:33]}  Qd7 {[%clk 0:02:36]} 11. Ne5 {[%clk 0:02:31]}  Qf5 {[%clk 0:02:14]} 12. Nxg4 {[%clk 0:02:27]}  Qd7 {[%clk 0:01:45]} 13. Nxf6+ {[%clk 0:02:26]}  Bxf6 {[%clk 0:01:45]} 14. Qb5 {[%clk 0:02:25]}  O-O {[%clk 0:01:43]} 15. Bxb6 {[%clk 0:02:16]}  Qxb5 {[%clk 0:01:39]} 16. Nxb5 {[%clk 0:02:17]}  axb6 {[%clk 0:01:39]} 17. a3 {[%clk 0:02:16]}  c6 {[%clk 0:01:39]} 18. dxc6 {[%clk 0:02:12]}  bxc6 {[%clk 0:01:39]} 19. Nd4 {[%clk 0:02:12]}  c5 {[%clk 0:01:34]} 20. Nb5 {[%clk 0:02:11]}  Ra4 {[%clk 0:01:31]} 21. g3 {[%clk 0:02:09]}  Re8 {[%clk 0:01:31]} 22. Rhe1 {[%clk 0:02:06]}  g5 {[%clk 0:01:29]} 23. b3 {[%clk 0:01:52]}  Ra5 {[%clk 0:01:16]} 24. Bc4 {[%clk 0:01:50]}  Rxe1 {[%clk 0:01:07]} 25. Rxe1 {[%clk 0:01:51]}  gxf4 {[%clk 0:01:04]} 26. gxf4 {[%clk 0:01:52]}  h5 {[%clk 0:01:03]} 27. a4 {[%clk 0:01:51]}  h4 {[%clk 0:01:02]} 28. Nd6 {[%clk 0:01:48]}  Ra7 {[%clk 0:00:59]} 29. Nxf7 {[%clk 0:01:48]}  Bc3 {[%clk 0:00:56]} 30. Rg1+ {[%clk 0:01:44]}  Kf8 {[%clk 0:00:54]} 31. Ne5 {[%clk 0:01:44]}  Rh7 {[%clk 0:00:47]} 32. Kd1 {[%clk 0:01:32]}  h3 {[%clk 0:00:46]} 33. Ke2 {[%clk 0:01:31]}  Ke7 {[%clk 0:00:45]} 34. Rg6 {[%clk 0:01:30]}  Rh4 {[%clk 0:00:43]} 35. Kf3 {[%clk 0:01:29]}  Bd2 {[%clk 0:00:41]} 36. Rg4 {[%clk 0:01:25]}  Rh6 {[%clk 0:00:37]} 37. Rg7+ {[%clk 0:01:23]}  Kf8 {[%clk 0:00:31]} 38. Rf7+ {[%clk 0:01:22]}  Ke8 {[%clk 0:00:30]} 39. Bb5+ {[%clk 0:01:22]}  Kd8 {[%clk 0:00:30]} 40. Nc6+ {[%clk 0:01:22]}  Rxc6 {[%clk 0:00:26]} 41. Bxc6 {[%clk 0:01:22]}  c4 {[%clk 0:00:25]} 42. Rd7+ {[%clk 0:01:22]}  Kc8 {[%clk 0:00:25]} 43. Rxd2 {[%clk 0:01:23]}  cxb3 {[%clk 0:00:25]} 44. cxb3 {[%clk 0:01:24]}  Kc7 {[%clk 0:00:26]} 45. f5 {[%clk 0:01:25]}  b5 {[%clk 0:00:27]} 46. f6 {[%clk 0:01:25]}  bxa4 {[%clk 0:00:27]} 47. bxa4 {[%clk 0:01:26]}  Kxc6 {[%clk 0:00:27]} 48. f7 {[%clk 0:01:27]}  Kc5 {[%clk 0:00:28]} 49. f8=Q+ {[%clk 0:01:28]}  Kc4 {[%clk 0:00:29]} 50. Qd6 {[%clk 0:01:27]}  Kb3 {[%clk 0:00:30]} 51. Qd3+ {[%clk 0:01:26]}  Kb4 {[%clk 0:00:30]} 52. Rb2+ {[%clk 0:01:26]}  Kc5 {[%clk 0:00:30]} 53. Rb5+ {[%clk 0:01:25]}  Kc6 {[%clk 0:00:31]} 54. Qd5+ {[%clk 0:01:26]}  Kc7 {[%clk 0:00:31]} 55. Rb7+ {[%clk 0:01:27]}  Kc8 {[%clk 0:00:30]} 56. Qd7# {[%clk 0:01:27]} 1-0


[Site "https://www.chess.com"]

[Event "Titled Tuesday Blitz August 22 Late 2023"]
[White "Zierk, Steven"]
[Black "Zhu, Jiner"]
[WhiteFideId "2034255"]
[BlackFideId "8608059"]
[WhiteElo "2863"]
[BlackElo "2668"]
[Result "0-1"]
[Round "10"]
[TimeControl "180+1"]
[Date "2023.08.22"]
[WhiteClock "0:00:13"]
[BlackClock "0:00:19"]
[Board "20"]

1. e4 {[%clk 0:03:00]}  c5 {[%clk 0:02:59]} 2. Nf3 {[%clk 0:03:01]}  Nc6 {[%clk 0:02:59]} 3. Bb5 {[%clk 0:03:00]}  g6 {[%clk 0:02:59]} 4. O-O {[%clk 0:03:01]}  Bg7 {[%clk 0:02:59]} 5. c3 {[%clk 0:03:01]}  e5 {[%clk 0:02:58]} 6. d4 {[%clk 0:03:01]}  cxd4 {[%clk 0:02:58]} 7. cxd4 {[%clk 0:03:01]}  exd4 {[%clk 0:02:59]} 8. Bf4 {[%clk 0:03:01]}  a6 {[%clk 0:02:49]} 9. Bc4 {[%clk 0:02:59]}  d6 {[%clk 0:02:46]} 10. Nbd2 {[%clk 0:02:47]}  Nge7 {[%clk 0:02:39]} 11. Nb3 {[%clk 0:02:43]}  O-O {[%clk 0:02:22]} 12. Nbxd4 {[%clk 0:02:41]}  Nxd4 {[%clk 0:02:22]} 13. Nxd4 {[%clk 0:02:41]}  d5 {[%clk 0:02:22]} 14. exd5 {[%clk 0:02:30]}  Nxd5 {[%clk 0:02:23]} 15. Bxd5 {[%clk 0:02:19]}  Qxd5 {[%clk 0:02:23]} 16. Nf3 {[%clk 0:02:04]}  Qxd1 {[%clk 0:02:18]} 17. Rfxd1 {[%clk 0:02:05]}  Bxb2 {[%clk 0:02:18]} 18. Rab1 {[%clk 0:02:06]}  Bg7 {[%clk 0:02:14]} 19. Ne5 {[%clk 0:02:05]}  b5 {[%clk 0:02:07]} 20. Nc6 {[%clk 0:02:01]}  Be6 {[%clk 0:02:04]} 21. a3 {[%clk 0:01:57]}  Rfe8 {[%clk 0:01:59]} 22. Rd2 {[%clk 0:01:44]}  Rac8 {[%clk 0:01:52]} 23. Rc1 {[%clk 0:01:40]}  h5 {[%clk 0:01:23]} 24. h4 {[%clk 0:01:37]}  Kh7 {[%clk 0:01:23]} 25. Rdd1 {[%clk 0:01:14]}  Bb2 {[%clk 0:01:20]} 26. Rb1 {[%clk 0:01:13]}  Bxa3 {[%clk 0:01:19]} 27. Nd4 {[%clk 0:01:13]}  Bc5 {[%clk 0:01:13]} 28. Be3 {[%clk 0:01:09]}  Bc4 {[%clk 0:01:11]} 29. Ra1 {[%clk 0:01:07]}  b4 {[%clk 0:01:07]} 30. Rdc1 {[%clk 0:01:06]}  Bf8 {[%clk 0:00:58]} 31. Ra5 {[%clk 0:00:59]}  b3 {[%clk 0:00:55]} 32. Rb1 {[%clk 0:00:58]}  Bg7 {[%clk 0:00:53]} 33. Nxb3 {[%clk 0:00:54]}  Rb8 {[%clk 0:00:47]} 34. Nd2 {[%clk 0:00:53]}  Rxb1+ {[%clk 0:00:45]} 35. Nxb1 {[%clk 0:00:54]}  Bb5 {[%clk 0:00:44]} 36. Ra3 {[%clk 0:00:49]}  Rc8 {[%clk 0:00:42]} 37. Nd2 {[%clk 0:00:47]}  Rc2 {[%clk 0:00:42]} 38. Ne4 {[%clk 0:00:45]}  Be5 {[%clk 0:00:32]} 39. f4 {[%clk 0:00:34]}  Bg7 {[%clk 0:00:28]} 40. Nc5 {[%clk 0:00:33]}  Bf8 {[%clk 0:00:20]} 41. Rxa6 {[%clk 0:00:13]}  Bxc5 {[%clk 0:00:19]} 42. Bxc5 {[%clk 0:00:13]}  Bxa6 {[%clk 0:00:19]} 0-1


[Site "https://www.chess.com"]

[Event "Titled Tuesday Blitz August 22 Late 2023"]
[White "Mekhitarian, Krikor Sevag"]
[Black "Shuvalova, Polina"]
[WhiteFideId "2107660"]
[BlackFideId "24171760"]
[WhiteElo "2838"]
[BlackElo "2664"]
[Result "1/2-1/2"]
[Round "10"]
[TimeControl "180+1"]
[Date "2023.08.22"]
[WhiteClock "0:00:03"]
[BlackClock "0:00:02"]
[Board "21"]

1. Nf3 {[%clk 0:03:00]}  d5 {[%clk 0:02:58]} 2. c4 {[%clk 0:03:00]}  c6 {[%clk 0:02:58]} 3. d4 {[%clk 0:02:57]}  Nf6 {[%clk 0:02:57]} 4. Nc3 {[%clk 0:02:58]}  e6 {[%clk 0:02:55]} 5. cxd5 {[%clk 0:02:58]}  exd5 {[%clk 0:02:54]} 6. Bf4 {[%clk 0:02:58]}  Bd6 {[%clk 0:02:54]} 7. Bxd6 {[%clk 0:02:58]}  Qxd6 {[%clk 0:02:55]} 8. e3 {[%clk 0:02:59]}  Bf5 {[%clk 0:02:54]} 9. Nh4 {[%clk 0:02:59]}  Bg4 {[%clk 0:02:49]} 10. Qb3 {[%clk 0:02:58]}  Qc7 {[%clk 0:02:44]} 11. h3 {[%clk 0:02:58]}  Be6 {[%clk 0:02:41]} 12. Bd3 {[%clk 0:02:54]}  Nbd7 {[%clk 0:02:41]} 13. Rc1 {[%clk 0:02:51]}  Qb6 {[%clk 0:02:40]} 14. Qc2 {[%clk 0:02:50]}  g6 {[%clk 0:02:37]} 15. O-O {[%clk 0:02:48]}  O-O {[%clk 0:02:36]} 16. f4 {[%clk 0:02:32]}  Kh8 {[%clk 0:01:58]} 17. f5 {[%clk 0:02:28]}  gxf5 {[%clk 0:01:56]} 18. Bxf5 {[%clk 0:02:28]}  Rg8 {[%clk 0:01:50]} 19. Rf4 {[%clk 0:02:17]}  Rg5 {[%clk 0:01:40]} 20. Qf2 {[%clk 0:02:16]}  Nh5 {[%clk 0:01:35]} 21. Bxe6 {[%clk 0:01:53]}  fxe6 {[%clk 0:01:11]} 22. Rf7 {[%clk 0:01:53]}  Qd8 {[%clk 0:00:58]} 23. Rf1 {[%clk 0:01:08]}  Rg7 {[%clk 0:00:55]} 24. Rxg7 {[%clk 0:00:44]}  Nxg7 {[%clk 0:00:54]} 25. Ne2 {[%clk 0:00:43]}  Qe7 {[%clk 0:00:50]} 26. Nf4 {[%clk 0:00:42]}  Kg8 {[%clk 0:00:45]} 27. Qg3 {[%clk 0:00:32]}  Rf8 {[%clk 0:00:45]} 28. Rf3 {[%clk 0:00:31]}  Nf6 {[%clk 0:00:42]} 29. Qg5 {[%clk 0:00:21]}  Qd7 {[%clk 0:00:28]} 30. Nd3 {[%clk 0:00:16]}  Ne4 {[%clk 0:00:24]} 31. Rxf8+ {[%clk 0:00:16]}  Kxf8 {[%clk 0:00:25]} 32. Qf4+ {[%clk 0:00:15]}  Qf7 {[%clk 0:00:18]} 33. Qb8+ {[%clk 0:00:15]}  Ne8 {[%clk 0:00:19]} 34. Nf3 {[%clk 0:00:12]}  a6 {[%clk 0:00:16]} 35. Nde5 {[%clk 0:00:12]}  Qe7 {[%clk 0:00:15]} 36. Qc8 {[%clk 0:00:12]}  Kg7 {[%clk 0:00:13]} 37. Nd3 {[%clk 0:00:11]}  N8d6 {[%clk 0:00:12]} 38. Qb8 {[%clk 0:00:10]}  Nf5 {[%clk 0:00:12]} 39. Qf4 {[%clk 0:00:10]}  Qf6 {[%clk 0:00:08]} 40. Nde5 {[%clk 0:00:08]}  h6 {[%clk 0:00:07]} 41. g4 {[%clk 0:00:08]}  Nfd6 {[%clk 0:00:04]} 42. Kg2 {[%clk 0:00:08]}  Qxf4 {[%clk 0:00:03]} 43. exf4 {[%clk 0:00:09]}  Nb5 {[%clk 0:00:04]} 44. a4 {[%clk 0:00:09]}  Nbd6 {[%clk 0:00:04]} 45. b3 {[%clk 0:00:08]}  Kf6 {[%clk 0:00:03]} 46. Kf1 {[%clk 0:00:09]}  Ng3+ {[%clk 0:00:03]} 47. Kf2 {[%clk 0:00:08]}  Nge4+ {[%clk 0:00:04]} 48. Ke3 {[%clk 0:00:09]}  Kg7 {[%clk 0:00:04]} 49. Nd7 {[%clk 0:00:08]}  Kf7 {[%clk 0:00:03]} 50. Nde5+ {[%clk 0:00:06]}  Kf6 {[%clk 0:00:03]} 51. Nd3 {[%clk 0:00:06]}  Ke7 {[%clk 0:00:03]} 52. h4 {[%clk 0:00:06]}  Kf6 {[%clk 0:00:02]} 53. Nfe5 {[%clk 0:00:06]}  Ke7 {[%clk 0:00:02]} 54. Ne1 {[%clk 0:00:04]}  Kf6 {[%clk 0:00:03]} 55. N1f3 {[%clk 0:00:04]}  Ng3 {[%clk 0:00:02]} 56. h5 {[%clk 0:00:04]}  Nge4 {[%clk 0:00:02]} 57. Nh4 {[%clk 0:00:04]}  Ke7 {[%clk 0:00:03]} 58. Nhg6+ {[%clk 0:00:05]}  Kf6 {[%clk 0:00:03]} 59. Nf8 {[%clk 0:00:05]}  Ke7 {[%clk 0:00:02]} 60. Nfg6+ {[%clk 0:00:05]}  Kf6 {[%clk 0:00:02]} 61. Nd7+ {[%clk 0:00:06]}  Kf7 {[%clk 0:00:02]} 62. Nde5+ {[%clk 0:00:03]}  Kf6 {[%clk 0:00:02]} 1/2-1/2


[Site "https://www.chess.com"]

[Event "Titled Tuesday Blitz August 22 Late 2023"]
[White "Diaz Camallonga, Carles"]
[Black "Pham, Le Thao Nguyen"]
[WhiteFideId "22235256"]
[BlackFideId "12401226"]
[WhiteElo "2808"]
[BlackElo "2661"]
[Result "1-0"]
[Round "10"]
[TimeControl "180+1"]
[Date "2023.08.22"]
[WhiteClock "0:00:10"]
[BlackClock "0:00:03"]
[Board "22"]

1. e4 {[%clk 0:02:56]}  c6 {[%clk 0:02:59]} 2. Nf3 {[%clk 0:02:55]}  d5 {[%clk 0:02:59]} 3. Nc3 {[%clk 0:02:56]}  dxe4 {[%clk 0:02:59]} 4. Nxe4 {[%clk 0:02:57]}  Nf6 {[%clk 0:02:59]} 5. Qe2 {[%clk 0:02:57]}  Nxe4 {[%clk 0:02:59]} 6. Qxe4 {[%clk 0:02:58]}  Qa5 {[%clk 0:02:59]} 7. Bc4 {[%clk 0:02:57]}  Bf5 {[%clk 0:02:49]} 8. Qf4 {[%clk 0:02:57]}  e6 {[%clk 0:02:49]} 9. c3 {[%clk 0:02:57]}  Nd7 {[%clk 0:02:47]} 10. d4 {[%clk 0:02:56]}  Be7 {[%clk 0:02:47]} 11. O-O {[%clk 0:02:56]}  O-O {[%clk 0:02:47]} 12. Re1 {[%clk 0:02:56]}  Qd8 {[%clk 0:02:35]} 13. Qg3 {[%clk 0:02:54]}  Bg6 {[%clk 0:02:34]} 14. Bb3 {[%clk 0:02:49]}  a5 {[%clk 0:02:33]} 15. a4 {[%clk 0:02:49]}  Re8 {[%clk 0:02:25]} 16. Ng5 {[%clk 0:02:44]}  Bxg5 {[%clk 0:02:17]} 17. Bxg5 {[%clk 0:02:43]}  Qb6 {[%clk 0:02:18]} 18. Bc4 {[%clk 0:02:38]}  Qxb2 {[%clk 0:02:14]} 19. Qc7 {[%clk 0:02:23]}  Nf8 {[%clk 0:02:10]} 20. Rec1 {[%clk 0:02:17]}  Rec8 {[%clk 0:01:54]} 21. Qg3 {[%clk 0:02:11]}  Qb6 {[%clk 0:01:52]} 22. Be7 {[%clk 0:02:09]}  Qc7 {[%clk 0:01:47]} 23. Bd6 {[%clk 0:02:07]}  Qd7 {[%clk 0:01:47]} 24. h4 {[%clk 0:02:07]}  h5 {[%clk 0:01:45]} 25. Ra2 {[%clk 0:01:59]}  b5 {[%clk 0:01:44]} 26. Bb3 {[%clk 0:01:57]}  Bf5 {[%clk 0:01:22]} 27. Bc5 {[%clk 0:01:51]}  Ng6 {[%clk 0:01:20]} 28. Qg5 {[%clk 0:01:49]}  Qd8 {[%clk 0:01:13]} 29. Qxh5 {[%clk 0:01:48]}  Qxh4 {[%clk 0:01:07]} 30. Qxh4 {[%clk 0:01:46]}  Nxh4 {[%clk 0:01:08]} 31. Rca1 {[%clk 0:01:45]}  Bd3 {[%clk 0:00:59]} 32. axb5 {[%clk 0:01:44]}  cxb5 {[%clk 0:01:00]} 33. Rxa5 {[%clk 0:01:43]}  Rxa5 {[%clk 0:01:01]} 34. Rxa5 {[%clk 0:01:43]}  Ng6 {[%clk 0:00:58]} 35. g3 {[%clk 0:01:42]}  Nf8 {[%clk 0:00:51]} 36. Ra7 {[%clk 0:01:42]}  Nh7 {[%clk 0:00:51]} 37. Kg2 {[%clk 0:01:38]}  Nf6 {[%clk 0:00:51]} 38. Kf3 {[%clk 0:01:38]}  Ne4 {[%clk 0:00:49]} 39. Ke3 {[%clk 0:01:36]}  Bb1 {[%clk 0:00:44]} 40. Ra1 {[%clk 0:01:32]}  Nxc3 {[%clk 0:00:41]} 41. Ra7 {[%clk 0:01:10]}  Ne4 {[%clk 0:00:29]} 42. Bb4 {[%clk 0:01:08]}  Nf6 {[%clk 0:00:26]} 43. Bc5 {[%clk 0:00:53]}  Be4 {[%clk 0:00:20]} 44. f3 {[%clk 0:00:47]}  Bd5 {[%clk 0:00:21]} 45. Bc2 {[%clk 0:00:47]}  Bc4 {[%clk 0:00:19]} 46. g4 {[%clk 0:00:43]}  Nd5+ {[%clk 0:00:19]} 47. Kd2 {[%clk 0:00:43]}  b4 {[%clk 0:00:15]} 48. g5 {[%clk 0:00:39]}  g6 {[%clk 0:00:13]} 49. Rb7 {[%clk 0:00:39]}  b3 {[%clk 0:00:10]} 50. Bxb3 {[%clk 0:00:38]}  Bxb3 {[%clk 0:00:11]} 51. Rxb3 {[%clk 0:00:38]}  Ra8 {[%clk 0:00:11]} 52. Kd3 {[%clk 0:00:38]}  Kg7 {[%clk 0:00:10]} 53. Bd6 {[%clk 0:00:38]}  Kg8 {[%clk 0:00:09]} 54. Be5 {[%clk 0:00:38]}  Kf8 {[%clk 0:00:09]} 55. Ke4 {[%clk 0:00:38]}  Rc8 {[%clk 0:00:08]} 56. Kd3 {[%clk 0:00:37]}  Rd8 {[%clk 0:00:06]} 57. Rb2 {[%clk 0:00:36]}  Rc8 {[%clk 0:00:07]} 58. Rb3 {[%clk 0:00:34]}  Ke8 {[%clk 0:00:07]} 59. Kd2 {[%clk 0:00:34]}  Kf8 {[%clk 0:00:07]} 60. Rb7 {[%clk 0:00:34]}  Ke8 {[%clk 0:00:07]} 61. Rb1 {[%clk 0:00:32]}  Ke7 {[%clk 0:00:06]} 62. Rb7+ {[%clk 0:00:32]}  Ke8 {[%clk 0:00:06]} 63. Bd6 {[%clk 0:00:31]}  Rd8 {[%clk 0:00:05]} 64. Bc5 {[%clk 0:00:30]}  Rc8 {[%clk 0:00:06]} 65. Kd3 {[%clk 0:00:29]}  Rc7 {[%clk 0:00:06]} 66. Rb8+ {[%clk 0:00:29]}  Kd7 {[%clk 0:00:07]} 67. Ke4 {[%clk 0:00:28]}  Kc6 {[%clk 0:00:07]} 68. Ke5 {[%clk 0:00:27]}  Rd7 {[%clk 0:00:07]} 69. Rb3 {[%clk 0:00:26]}  Rc7 {[%clk 0:00:06]} 70. Ra3 {[%clk 0:00:25]}  Rb7 {[%clk 0:00:07]} 71. Ra6+ {[%clk 0:00:25]}  Kb5 {[%clk 0:00:07]} 72. Rd6 {[%clk 0:00:24]}  Kc4 {[%clk 0:00:08]} 73. Ra6 {[%clk 0:00:18]}  Kd3 {[%clk 0:00:07]} 74. f4 {[%clk 0:00:17]}  Ke3 {[%clk 0:00:06]} 75. Ra3+ {[%clk 0:00:16]}  Kf2 {[%clk 0:00:05]} 76. Rh3 {[%clk 0:00:16]}  Kg2 {[%clk 0:00:05]} 77. Ra3 {[%clk 0:00:14]}  Kf2 {[%clk 0:00:05]} 78. Bd6 {[%clk 0:00:13]}  Kg2 {[%clk 0:00:05]} 79. Bc5 {[%clk 0:00:13]}  Rb2 {[%clk 0:00:05]} 80. Ra7 {[%clk 0:00:09]}  Re2+ {[%clk 0:00:05]} 81. Kd6 {[%clk 0:00:09]}  Re4 {[%clk 0:00:05]} 82. Rxf7 {[%clk 0:00:09]}  Nxf4 {[%clk 0:00:05]} 83. Rf6 {[%clk 0:00:08]}  Kg3 {[%clk 0:00:05]} 84. Ke7 {[%clk 0:00:08]}  Kg4 {[%clk 0:00:05]} 85. Bd6 {[%clk 0:00:09]}  Nd5+ {[%clk 0:00:05]} 86. Kf7 {[%clk 0:00:08]}  Kxg5 {[%clk 0:00:05]} 87. Rxg6+ {[%clk 0:00:08]}  Kf5 {[%clk 0:00:06]} 88. Be5 {[%clk 0:00:08]}  Rh4 {[%clk 0:00:06]} 89. Rg7 {[%clk 0:00:07]}  Rh5 {[%clk 0:00:05]} 90. Ke8 {[%clk 0:00:07]}  Ke4 {[%clk 0:00:05]} 91. Kd7 {[%clk 0:00:07]}  Rxe5 {[%clk 0:00:05]} 92. dxe5 {[%clk 0:00:07]}  Kxe5 {[%clk 0:00:05]} 93. Rg6 {[%clk 0:00:07]}  Nf4 {[%clk 0:00:04]} 94. Rh6 {[%clk 0:00:07]}  Kf5 {[%clk 0:00:04]} 95. Kd6 {[%clk 0:00:08]}  Ke4 {[%clk 0:00:03]} 96. Rh4 {[%clk 0:00:07]}  Kf5 {[%clk 0:00:04]} 97. Rh1 {[%clk 0:00:07]}  Ke4 {[%clk 0:00:05]} 98. Re1+ {[%clk 0:00:07]}  Kf5 {[%clk 0:00:06]} 99. Re5+ {[%clk 0:00:08]}  Kg4 {[%clk 0:00:04]} 100. Re4 {[%clk 0:00:07]}  Kf3 {[%clk 0:00:05]} 101. Ke5 {[%clk 0:00:07]}  Kg4 {[%clk 0:00:05]} 102. Rxf4+ {[%clk 0:00:07]}  Kg3 {[%clk 0:00:06]} 103. Rf6 {[%clk 0:00:08]}  Kg4 {[%clk 0:00:06]} 104. Rxe6 {[%clk 0:00:09]}  Kg5 {[%clk 0:00:03]} 105. Rf6 {[%clk 0:00:10]} 1-0


[Site "https://www.chess.com"]

[Event "Titled Tuesday Blitz August 22 Late 2023"]
[White "Omelja, Artem"]
[Black "Kushko, Dmitriy"]
[WhiteFideId "14119846"]
[BlackFideId "14162261"]
[WhiteElo "2651"]
[BlackElo "2766"]
[Result "1-0"]
[Round "10"]
[TimeControl "180+1"]
[Date "2023.08.22"]
[WhiteClock "0:00:19"]
[BlackClock "0:00:00"]
[Board "24"]

1. d4 {[%clk 0:03:00]}  g6 {[%clk 0:03:00]} 2. c4 {[%clk 0:03:01]}  Bg7 {[%clk 0:03:00]} 3. Nc3 {[%clk 0:03:01]}  d6 {[%clk 0:03:00]} 4. e4 {[%clk 0:03:01]}  e5 {[%clk 0:03:01]} 5. Nf3 {[%clk 0:03:01]}  Bg4 {[%clk 0:03:00]} 6. d5 {[%clk 0:02:53]}  a5 {[%clk 0:03:00]} 7. Be2 {[%clk 0:02:51]}  Na6 {[%clk 0:02:58]} 8. Be3 {[%clk 0:02:51]}  Bxf3 {[%clk 0:02:54]} 9. Bxf3 {[%clk 0:02:51]}  h5 {[%clk 0:02:54]} 10. O-O {[%clk 0:02:40]}  Bh6 {[%clk 0:02:54]} 11. Bxh6 {[%clk 0:02:37]}  Nxh6 {[%clk 0:02:54]} 12. b3 {[%clk 0:02:25]}  Kf8 {[%clk 0:02:53]} 13. a3 {[%clk 0:02:25]}  Kg7 {[%clk 0:02:39]} 14. Rb1 {[%clk 0:02:26]}  f6 {[%clk 0:02:29]} 15. b4 {[%clk 0:02:25]}  axb4 {[%clk 0:02:29]} 16. axb4 {[%clk 0:02:26]}  Nf7 {[%clk 0:02:29]} 17. Be2 {[%clk 0:02:18]}  Qe7 {[%clk 0:02:28]} 18. Qd2 {[%clk 0:02:11]}  Rhc8 {[%clk 0:02:15]} 19. Bd3 {[%clk 0:01:56]}  c5 {[%clk 0:02:13]} 20. dxc6 {[%clk 0:01:55]}  bxc6 {[%clk 0:02:13]} 21. Rfc1 {[%clk 0:01:52]}  Rab8 {[%clk 0:02:10]} 22. Na4 {[%clk 0:01:43]}  c5 {[%clk 0:02:03]} 23. b5 {[%clk 0:01:42]}  Nb4 {[%clk 0:02:03]} 24. Nc3 {[%clk 0:01:43]}  Ng5 {[%clk 0:01:59]} 25. Nd5 {[%clk 0:01:41]}  Nxd5 {[%clk 0:01:58]} 26. cxd5 {[%clk 0:01:38]}  c4 {[%clk 0:01:48]} 27. h4 {[%clk 0:01:27]}  cxd3 {[%clk 0:01:25]} 28. Rxc8 {[%clk 0:01:21]}  Rxc8 {[%clk 0:01:25]} 29. hxg5 {[%clk 0:01:21]}  fxg5 {[%clk 0:01:25]} 30. Qxd3 {[%clk 0:01:18]}  g4 {[%clk 0:00:40]} 31. b6 {[%clk 0:01:14]}  Qg5 {[%clk 0:00:39]} 32. b7 {[%clk 0:01:03]}  Rc1+ {[%clk 0:00:38]} 33. Qf1 {[%clk 0:01:04]}  Rxf1+ {[%clk 0:00:23]} 34. Kxf1 {[%clk 0:01:05]}  Qh4 {[%clk 0:00:12]} 35. b8=Q {[%clk 0:01:05]}  Qh1+ {[%clk 0:00:12]} 36. Ke2 {[%clk 0:01:05]}  Qxg2 {[%clk 0:00:13]} 37. Rb7+ {[%clk 0:01:00]}  Kh6 {[%clk 0:00:12]} 38. Qf8+ {[%clk 0:00:59]}  Kg5 {[%clk 0:00:12]} 39. Qe7+ {[%clk 0:00:59]}  Kh6 {[%clk 0:00:12]} 40. Qf8+ {[%clk 0:00:46]}  Kg5 {[%clk 0:00:12]} 41. Rb4 {[%clk 0:00:36]}  Kh4 {[%clk 0:00:08]} 42. Qf6+ {[%clk 0:00:28]}  g5 {[%clk 0:00:08]} 43. Qf5 {[%clk 0:00:27]}  Kh3 {[%clk 0:00:03]} 44. Qxg5 {[%clk 0:00:26]}  Qf3+ {[%clk 0:00:03]} 45. Ke1 {[%clk 0:00:24]}  Qc3+ {[%clk 0:00:03]} 46. Qd2 {[%clk 0:00:24]}  Qa1+ {[%clk 0:00:02]} 47. Ke2 {[%clk 0:00:24]}  Qa6+ {[%clk 0:00:03]} 48. Qd3+ {[%clk 0:00:15]}  Qxd3+ {[%clk 0:00:03]} 49. Kxd3 {[%clk 0:00:16]}  Kg2 {[%clk 0:00:03]} 50. Ke2 {[%clk 0:00:17]}  h4 {[%clk 0:00:03]} 51. Rb6 {[%clk 0:00:17]}  h3 {[%clk 0:00:03]} 52. Rxd6 {[%clk 0:00:18]}  h2 {[%clk 0:00:00]} 53. Rh6 {[%clk 0:00:19]} 1-0


[Site "https://www.chess.com"]